bitfinex/quotes_ETHUSD_20240703
["timestamp","ask_amount","ask_price","bid_price","bid_amount"]
[1720031293205,0.1153765,3311.0,3310.6,2.33674877]
[1720031293549,0.1153765,3311.0,3310.6,2.57646453]
[1720031294203,0.1153765,3311.0,3310.6,5.59705453]
[1720031296442,0.1153765,3311.0,3310.6,2.57646453]
[1720031297006,3.1356465,3311.0,3310.6,2.57646453]
[1720031297344,3.02042,3310.8,3310.6,0.06164877]
[1720031297646,3.02042,3310.8,3310.3,2.66362123]
[1720031297845,3.02042,3310.8,3310.7,0.06107341]
[1720031298020,3.02042,3310.8,3310.3,2.66362123]
[1720031298219,3.02042,3310.8,3310.7,0.06107341]
[1720031298430,3.02042,3310.8,3310.4,0.26636212]
[1720031298629,3.02042,3310.8,3310.7,0.06107341]
[1720031298835,3.02042,3310.8,3310.4,0.26636212]
[1720031299148,3.02042,3310.8,3310.7,0.06107341]
[1720031299319,3.02042,3310.8,3310.4,0.26636212]
[1720031299525,3.02042,3310.8,3310.7,0.06107341]
[1720031299722,3.02042,3310.8,3310.5,0.26076621]
[1720031299925,3.02042,3310.8,3310.7,0.06107341]
[1720031300411,3.02042,3310.8,3310.5,0.26076621]
[1720031300608,3.02042,3310.8,3310.7,0.06107341]
[1720031300881,3.02118,3310.0,3309.7,2.3218]
[1720031301168,3.02124,3309.9,3309.3,2.3218]
[1720031302246,3.02133,3309.8,3309.3,2.3218]
[1720031302411,3.02133,3309.8,3309.4,0.23218]
[1720031303374,3.02138,3309.8,3309.4,0.23218]
[1720031304853,3.02142,3309.7,3309.4,0.23218]
[1720031305026,3.02138,3309.8,3309.4,0.23218]
[1720031305237,3.0216,3309.5,3309.3,2.3218]
[1720031306234,3.0216,3309.5,3308.6,0.24294]
[1720031306235,3.02184,3309.3,3308.9,2.4381]
[1720031306548,3.02197,3309.1,3308.9,2.4381]
[1720031306891,3.02197,3309.1,3309.0,0.24381]
[1720031308070,3.02184,3309.3,3309.0,0.24381]
[1720031308277,3.02189,3309.2,3309.0,0.24381]
[1720031308839,3.02123,3310.0,3309.0,0.24381]
[1720031309266,3.0217,3309.4,3309.1,0.268191]
[1720031314982,6.04318,3309.6,3309.1,0.268191]
[1720031315190,3.02134,3309.8,3309.1,0.268191]
[1720031315421,3.02151,3309.6,3309.1,0.268191]
[1720031315571,3.02151,3309.6,3309.2,0.0581413]
[1720031317991,6.04309,3309.6,3309.2,0.0581413]
[1720031318920,3.02161,3309.5,3309.2,0.0581413]
[1720031322312,3.02161,3309.5,3309.3,2.2735]
[1720031322547,3.02142,3309.7,3309.4,0.23316413]
[1720031322855,3.02142,3309.7,3309.5,0.0581413]
[1720031324855,3.02151,3309.6,3309.5,0.0581413]
[1720031325646,3.02138,3309.8,3309.5,0.0581413]
[1720031325828,6.04277,3309.8,3309.5,0.0581413]
[1720031326021,6.04277,3309.8,3309.5,0.31462184]
[1720031326445,3.02138,3309.8,3309.5,0.31462184]
[1720031327159,6.04277,3309.8,3309.5,0.31462184]
[1720031327316,3.02138,3309.8,3309.5,0.31462184]
[1720031327955,3.02128,3309.9,3309.6,2.4117]
[1720031328110,3.02081,3310.4,3309.6,2.4117]
[1720031328111,3.0211,3310.1,3309.6,2.4117]
[1720031328317,3.02127,3309.9,3309.7,0.33068368]
[1720031333589,0.1153765,3311.0,3309.8,6.5738]
[1720031333894,0.1153765,3311.0,3310.4,2.4878]
[1720031334047,0.1153765,3311.0,3310.5,0.06040344]
[1720031334248,0.1153765,3311.0,3310.5,0.95640344]
[1720031334456,0.1153765,3311.0,3310.6,0.05775759]
[1720031334688,0.1153765,3311.0,3310.7,0.06039979]
[1720031334890,0.1153765,3311.0,3310.7,0.11814514]
[1720031336372,0.1153765,3311.0,3310.7,0.05774535]
[1720031340283,0.1153765,3311.0,3310.7,3.07823535]
[1720031340998,0.1153765,3311.0,3310.7,3.13863885]
[1720031341209,0.1153765,3311.0,3310.8,0.6811447]
[1720031341497,0.1153765,3311.0,3310.9,0.057019]
[1720031350115,6.1558365,3311.0,3310.9,0.057019]
[1720031350286,6.1558365,3311.0,3310.0,2.4269]
[1720031350287,3.02047,3310.8,3310.0,2.4269]
[1720031350623,3.02047,3310.8,3310.1,3.26374]
[1720031351277,3.02054,3310.7,3310.1,3.26374]
[1720031351680,3.02054,3310.7,3310.1,0.24269]
[1720031351982,5.36354,3310.7,3310.1,0.24269]
[1720031353401,3.02065,3310.6,3310.0,2.4269]
[1720031353722,3.02065,3310.6,3309.8,3.02126]
[1720031354727,6.04132,3310.6,3309.8,3.02126]
[1720031354899,6.04132,3310.6,3309.7,5.44077]
[1720031354900,6.04132,3310.6,3309.9,0.846203]
[1720031355406,3.02078,3310.5,3309.9,0.846203]
[1720031356444,3.02088,3310.3,3309.9,0.846203]
[1720031358738,2.343,3310.7,3309.7,2.4194]
[1720031358947,3.02123,3310.0,3309.7,2.4194]
[1720031359105,6.04246,3310.0,3309.3,2.3671]
[1720031359529,3.02124,3309.9,3309.3,2.3671]
[1720031360536,3.02114,3310.0,3309.3,5.38888]
[1720031360743,7.38,3310.8,3309.7,2.2662]
[1720031360744,3.02083,3310.4,3309.7,2.2662]
[1720031360943,3.02101,3310.2,3309.7,2.2662]
[1720031361305,3.02101,3310.2,3309.8,0.05685421]
[1720031361606,3.02101,3310.2,3309.7,2.2662]
[1720031361833,3.02101,3310.2,3309.9,0.05685421]
[1720031362035,3.02101,3310.2,3309.7,2.2662]
[1720031362240,3.02101,3310.2,3310.0,0.05685421]
[1720031362420,3.02101,3310.2,3309.8,0.22662]
[1720031362902,3.02101,3310.2,3309.9,0.05685421]
[1720031364442,3.02083,3310.4,3309.9,0.05685421]
[1720031364619,3.02069,3310.5,3310.0,2.29675331]
[1720031364817,3.02069,3310.5,3310.1,0.29577383]
[1720031365134,3.02069,3310.5,3310.1,0.35278717]
[1720031369945,6.0411,3310.7,3310.1,0.35278717]
[1720031371083,3.0206,3310.6,3310.1,0.35278717]
[1720031371730,6.0411,3310.7,3310.1,0.35278717]
[1720031375972,6.9371,3310.7,3310.1,0.35278717]
[1720031376387,3.02065,3310.6,3310.1,0.35278717]
[1720031376553,3.02065,3310.6,3310.1,0.11742642]
[1720031376749,0.896,3310.5,3310.1,0.11742642]
[1720031377062,3.91669,3310.5,3310.1,0.05701334]
[1720031378396,6.93744,3310.5,3310.1,0.05701334]
[1720031378972,3.02078,3310.4,3310.1,0.05701334]
[1720031379395,3.91669,3310.5,3310.1,0.05701334]
[1720031379396,3.91693,3310.3,3310.1,0.05701334]
[1720031379893,3.91693,3310.3,3309.7,2.2579]
[1720031380103,3.91693,3310.3,3309.8,0.527936]
[1720031380405,3.91693,3310.3,3309.9,0.0550109]
[1720031380877,3.02093,3310.3,3309.9,0.0550109]
[1720031381695,6.04187,3310.3,3309.9,0.0550109]
[1720031381900,3.02097,3310.2,3309.9,0.0550109]
[1720031382406,3.02097,3310.2,3310.0,0.0550109]
[1720031382771,3.02097,3310.2,3309.7,2.2579]
[1720031383014,3.02097,3310.2,3310.1,0.0550109]
[1720031383210,3.02097,3310.2,3309.7,2.78584]
[1720031383374,3.02097,3310.2,3310.1,0.0550109]
[1720031383571,3.02097,3310.2,3309.7,2.78584]
[1720031383778,3.02097,3310.2,3310.1,0.0550109]
[1720031384081,3.02097,3310.2,3309.7,2.78584]
[1720031384291,3.02097,3310.2,3310.1,0.0550109]
[1720031384921,3.02097,3310.2,3309.7,2.2579]
[1720031385370,3.02097,3310.2,3309.8,0.0550109]
[1720031385804,3.02097,3310.2,3309.7,2.2579]
[1720031386007,3.02097,3310.2,3309.9,0.0550109]
[1720031386213,3.02097,3310.2,3309.7,2.2579]
[1720031386387,3.02097,3310.2,3310.0,0.0551374]
[1720031386577,3.02097,3310.2,3309.7,2.2579]
[1720031386908,3.02097,3310.2,3310.1,0.0551374]
[1720031387276,3.02097,3310.2,3309.7,2.2579]
[1720031387478,3.02097,3310.2,3309.8,0.0551374]
[1720031387675,3.02097,3310.2,3309.9,0.23130374]
[1720031388110,3.02097,3310.2,3310.0,0.0551374]
[1720031388317,3.02079,3310.4,3310.0,0.0551374]
[1720031388522,6.04163,3310.4,3310.1,2.313]
[1720031388812,3.02079,3310.4,3310.1,2.313]
[1720031389023,3.02079,3310.4,3310.2,0.0551374]
[1720031389320,6.04164,3310.4,3310.2,0.0551374]
[1720031389676,3.02079,3310.4,3310.2,0.0551374]
[1720031390513,3.02065,3310.6,3310.2,0.0551374]
[1720031390736,6.93732,3310.6,3310.2,0.0551374]
[1720031391014,3.02069,3310.5,3310.2,0.0551374]
[1720031392201,3.91665,3310.6,3310.2,0.0551374]
[1720031393115,3.02074,3310.5,3310.2,0.0551374]
[1720031395724,3.1356865,3311.0,3310.3,5.46355]
[1720031395926,1.11574643,3310.9,3310.4,0.05510066]
[1720031396135,0.11974643,3310.8,3310.4,0.05510066]
[1720031396425,3.91635,3310.9,3310.4,0.05510066]
[1720031396717,0.896,3310.8,3310.4,0.05510066]
[1720031396898,0.896,3310.8,3310.4,0.6306581]
[1720031399106,0.1153765,3311.0,3310.4,0.05510066]
[1720031399107,3.02069,3310.5,3310.4,0.05510066]
[1720031399305,3.02083,3310.4,3309.9,2.4427]
[1720031399503,3.91683,3310.4,3310.0,0.05510066]
[1720031399842,3.91683,3310.4,3310.0,0.60700773]
[1720031400332,3.91683,3310.4,3310.0,0.05510066]
[1720031400543,3.02096,3310.2,3310.0,0.05510066]
[1720031401614,3.02039,3310.9,3310.1,3.37301782]
[1720031401829,3.02048,3310.8,3310.1,2.4166]
[1720031402003,2.3994,3311.1,3310.1,2.4166]
[1720031402004,3.02076,3310.5,3310.1,2.4166]
[1720031402225,3.02083,3310.4,3310.1,2.4166]
[1720031402795,3.02083,3310.4,3310.0,0.05510066]
[1720031402796,3.02089,3310.3,3310.0,0.05510066]
[1720031402995,2.3994,3310.7,3310.0,0.05510066]
[1720031402996,3.02105,3310.1,3310.0,0.05510066]
[1720031405446,6.0421,3310.1,3310.0,0.05510066]
[1720031407150,3.02065,3310.6,3310.0,2.31070066]
[1720031407454,3.02066,3310.6,3310.1,2.54708262]
[1720031411066,3.02066,3310.6,3310.1,2.48667007]
[1720031411372,3.02043,3310.8,3310.2,0.06041195]
[1720031411736,3.02051,3310.7,3310.2,0.06041195]
[1720031413893,3.02061,3310.6,3310.1,2.48667007]
[1720031414397,3.02061,3310.6,3310.2,0.06041198]
[1720031417360,3.02061,3310.6,3310.2,0.62274425]
[1720031417770,3.02061,3310.6,3310.3,0.05522309]
[1720031417973,3.02043,3310.8,3310.3,0.05522309]
[1720031417974,3.02049,3310.8,3310.3,0.05522309]
[1720031418202,3.02091,3310.3,3309.8,2.4225]
[1720031418408,3.02091,3310.3,3309.9,0.54439]
[1720031419279,3.02072,3310.5,3310.0,2.50181801]
[1720031420865,3.02052,3310.7,3310.0,5.52294801]
[1720031421065,3.02052,3310.7,3310.0,6.41894801]
[1720031421379,3.02052,3310.7,3310.1,0.9984498]
[1720031421706,3.02052,3310.7,3310.1,1.05886311]
[1720031422201,3.5043765,3311.0,3310.2,2.3953]
[1720031422507,3.02057,3310.7,3310.2,2.3953]
[1720031422667,3.02057,3310.7,3310.2,3.12637498]
[1720031422880,6.04114,3310.7,3310.2,3.12637498]
[1720031423194,3.02071,3310.5,3310.2,3.12637498]
[1720031423392,3.02071,3310.5,3310.2,2.3953]
[1720031423617,6.04147,3310.5,3309.8,5.46071]
[1720031423781,3.02071,3310.5,3309.9,3.02119]
[1720031424092,6.04146,3310.5,3309.9,3.02119]
[1720031424612,6.04146,3310.5,3309.8,2.4394]
[1720031424819,6.04146,3310.5,3309.9,0.635673]
[1720031425596,0.896,3310.8,3309.9,0.635673]
[1720031425813,0.896,3310.8,3309.8,2.4394]
[1720031425814,3.02103,3310.2,3309.8,2.4394]
[1720031426182,6.04208,3310.2,3309.8,2.4394]
[1720031427841,6.04208,3310.2,3309.9,0.05508434]
[1720031432586,6.04207,3310.2,3309.9,0.05508434]
[1720031432981,3.02103,3310.2,3309.9,0.05508434]
[1720031433390,3.02103,3310.2,3309.9,0.30453277]
[1720031436646,3.02083,3310.4,3309.9,0.30453277]
[1720031437016,3.02092,3310.3,3309.9,0.30453277]
[1720031437238,3.02069,3310.5,3310.0,2.3724]
[1720031437538,3.02069,3310.5,3310.0,2.42761495]
[1720031437746,3.02069,3310.5,3310.1,0.56982334]
[1720031438445,3.02069,3310.5,3310.2,0.05521495]
[1720031439245,3.91646,3310.8,3310.2,0.05521495]
[1720031439429,3.02065,3310.6,3310.2,0.05521495]
[1720031441222,6.04131,3310.6,3310.2,0.05521495]
[1720031441427,3.02065,3310.6,3310.2,0.05521495]
[1720031442222,3.02065,3310.6,3310.2,0.66167908]
[1720031442420,0.1153765,3311.0,3310.4,3.02076]
[1720031442742,0.1153765,3311.0,3310.5,2.42540522]
[1720031442949,0.1153765,3311.0,3310.5,3.32140522]
[1720031443109,0.1153765,3311.0,3310.6,0.05504354]
[1720031443421,0.1153765,3311.0,3310.6,0.99683642]
[1720031443626,0.1153765,3311.0,3310.6,1.05723981]
[1720031443824,0.1153765,3311.0,3310.7,3.02048]
[1720031444167,0.1153765,3311.0,3310.9,6.28132]
[1720031444468,0.1153765,3311.0,3310.9,6.33623705]
[1720031444630,0.1153765,3311.0,3310.9,7.27189576]
[1720031444813,0.1153765,3311.0,3310.9,10.29221576]
[1720031445012,0.1153765,3311.0,3310.9,13.48221576]
[1720031445422,0.1153765,3311.0,3310.9,12.58621576]
[1720031445629,0.1153765,3311.0,3310.9,13.48221576]
[1720031446721,0.1153765,3311.0,3310.9,12.58621576]
[1720031446913,0.1153765,3311.0,3310.9,6.37589576]
[1720031447229,0.1153765,3311.0,3310.9,7.27189576]
[1720031447428,0.1153765,3311.0,3310.9,3.35557576]
[1720031448519,0.1153765,3311.0,3310.9,0.05491705]
[1720031449018,0.1153765,3311.0,3310.6,6.25122]
[1720031449246,0.1153765,3311.0,3310.9,0.05463151]
[1720031449456,0.1153765,3311.0,3310.6,6.25122]
[1720031449655,0.1153765,3311.0,3310.9,0.05463151]
[1720031449951,0.1153765,3311.0,3310.6,5.35522]
[1720031450152,0.1153765,3311.0,3310.9,0.05463151]
[1720031450523,0.1153765,3311.0,3310.7,0.535522]
[1720031450524,0.1153765,3311.0,3310.6,2.3347]
[1720031450752,0.1153765,3311.0,3310.9,0.05463151]
[1720031450919,0.1153765,3311.0,3310.6,2.3347]
[1720031451114,0.1153765,3311.0,3310.9,0.05463151]
[1720031451338,0.1153765,3311.0,3310.6,5.35528]
[1720031451548,0.1153765,3311.0,3310.9,0.05463151]
[1720031451945,0.1153765,3311.0,3310.7,0.535528]
[1720031452131,0.1153765,3311.0,3310.9,0.05463151]
[1720031452349,0.1153765,3311.0,3310.7,0.535528]
[1720031452540,0.1153765,3311.0,3310.9,0.05463151]
[1720031452738,6.1559165,3311.0,3310.3,2.3447]
[1720031453225,3.02035,3310.9,3310.4,0.05433368]
[1720031453433,3.02035,3310.9,3310.4,0.65697546]
[1720031453937,3.02043,3310.8,3310.4,0.65697546]
[1720031454126,3.02043,3310.8,3310.4,0.05433368]
[1720031454942,3.0206,3310.6,3310.4,0.05433368]
[1720031455472,3.0206,3310.6,3310.0,2.3447]
[1720031455627,6.04128,3310.6,3310.5,0.05455802]
[1720031455826,6.04128,3310.6,3310.0,2.3447]
[1720031456133,3.0207,3310.5,3310.0,2.90623784]
[1720031457267,3.0206,3310.6,3310.0,2.90623784]
[1720031457557,3.0206,3310.6,3310.1,2.4686]
[1720031458065,3.0206,3310.6,3310.2,0.05466002]
[1720031459375,2.4587,3310.9,3310.2,0.05466002]
[1720031459669,3.02087,3310.3,3310.2,0.05466002]
[1720031459824,3.02115,3310.0,3309.7,2.4156]
[1720031460250,3.02115,3310.0,3309.8,0.05466002]
[1720031460565,3.02115,3310.0,3309.7,2.4156]
[1720031461072,3.02115,3310.0,3309.8,0.05466002]
[1720031461230,3.02115,3310.0,3309.7,2.4156]
[1720031461425,3.02115,3310.0,3309.9,0.05466002]
[1720031461668,3.02115,3310.0,3309.7,2.65716]
[1720031461828,3.02115,3310.0,3309.9,0.05466002]
[1720031462035,3.02115,3310.0,3309.7,2.4156]
[1720031462254,3.02115,3310.0,3309.9,0.05466002]
[1720031462450,3.02115,3310.0,3309.7,2.4156]
[1720031462651,3.02115,3310.0,3309.9,0.05466002]
[1720031462863,3.02115,3310.0,3309.4,5.40978]
[1720031463058,3.02115,3310.0,3309.9,0.05501905]
[1720031463241,3.02124,3309.9,3309.4,2.3881]
[1720031463642,2.3953,3310.4,3309.4,2.3881]
[1720031463643,3.02148,3309.7,3309.4,2.3881]
[1720031464452,3.02133,3309.8,3309.4,2.3881]
[1720031465679,3.02147,3309.7,3309.4,2.3881]
[1720031467301,3.02106,3310.1,3309.4,5.64859]
[1720031467471,3.02115,3310.0,3309.4,5.64859]
[1720031467674,3.02123,3309.9,3309.4,2.62691]
[1720031469073,3.02123,3309.9,3309.4,5.64859]
[1720031469278,3.02123,3309.9,3309.5,0.564859]
[1720031469458,3.02131,3309.9,3309.4,2.62691]
[1720031470482,3.0211,3310.1,3309.4,2.62691]
[1720031470856,3.02115,3310.0,3309.4,2.62691]
[1720031472401,3.02115,3310.0,3309.4,5.6486]
[1720031472698,3.02115,3310.0,3309.5,0.05819817]
[1720031472996,9.8197,3310.7,3309.6,2.3143]
[1720031473184,3.02057,3310.7,3309.8,5.33554]
[1720031473384,3.02071,3310.5,3309.9,0.05819113]
[1720031473605,3.02071,3310.5,3309.9,0.11348361]
[1720031473800,3.02079,3310.4,3309.9,0.11348361]
[1720031473967,3.02079,3310.4,3309.9,0.05529248]
[1720031476004,3.02079,3310.4,3309.9,3.70521173]
[1720031476167,3.02079,3310.4,3309.9,4.60121173]
[1720031476366,0.896,3310.8,3310.0,0.01813598]
[1720031476565,3.02052,3310.7,3310.1,3.3614]
[1720031476787,3.02052,3310.7,3310.2,0.638246]
[1720031476983,3.02052,3310.7,3310.2,0.69348951]
[1720031479163,6.02042,3310.8,3310.2,0.69348951]
[1720031479581,9.04091,3310.8,3310.2,0.69348951]
[1720031482170,9.04091,3310.8,3310.2,0.05524351]
[1720031483221,3.02063,3310.6,3310.2,0.05524351]
[1720031483500,3.02082,3310.4,3310.2,0.05524351]
[1720031483701,3.02082,3310.4,3309.8,2.3452]
[1720031483702,6.04166,3310.4,3309.8,2.3452]
[1720031483911,3.02082,3310.4,3310.3,0.05490888]
[1720031484106,3.02066,3310.6,3309.8,5.36647]
[1720031484280,6.04133,3310.6,3310.3,0.05490888]
[1720031484486,3.02069,3310.5,3309.8,5.36647]
[1720031484689,3.02069,3310.5,3310.4,0.05490888]
[1720031484889,3.02069,3310.5,3309.8,6.20525]
[1720031485121,3.02069,3310.5,3310.4,0.05490888]
[1720031485310,3.02056,3310.7,3310.3,2.3452]
[1720031485494,3.02056,3310.7,3310.4,0.05490888]
[1720031488478,3.02061,3310.6,3310.4,0.05490888]
[1720031491074,3.02052,3310.7,3310.4,0.05490888]
[1720031500906,3.0,3310.8,3310.4,0.05490888]
[1720031501221,3.0,3310.8,3310.3,2.3452]
[1720031501621,3.0,3310.8,3310.4,0.05485583]
[1720031501837,6.02043,3310.8,3310.4,0.05485583]
[1720031502730,3.02051,3310.7,3310.4,0.05485583]
[1720031507326,6.02044,3310.8,3310.4,0.05485583]
[1720031507732,3.0,3310.8,3310.4,0.05485583]
[1720031507952,3.0,3310.9,3310.4,0.05485583]
[1720031508302,0.1153765,3311.0,3310.4,3.91975441]
[1720031508496,0.1153765,3311.0,3310.4,6.94047441]
[1720031509242,0.1153765,3311.0,3310.5,2.4232]
[1720031509442,0.1153765,3311.0,3310.9,2.2988]
[1720031509748,0.1153765,3311.0,3310.9,2.35363951]
[1720031511253,0.1153765,3311.0,3310.9,5.91135746]
[1720031512656,0.1153765,3311.0,3310.9,6.80735746]
[1720031513657,0.1153765,3311.0,3310.9,9.82767746]
[1720031515812,0.1153765,3311.0,3310.9,8.93167746]
[1720031521877,0.1153765,3311.0,3310.9,11.95199746]
[1720031522167,0.1153765,3311.0,3310.9,15.14199746]
[1720031523144,0.1153765,3311.0,3310.9,15.69199746]
[1720031524138,0.1153765,3311.0,3310.9,18.71231746]
[1720031524436,0.10348768,3311.0,3310.9,21.71231746]
[1720031524854,5.28662,3312.8,3311.8,5.49342]
[1720031524855,3.01879,3312.6,3311.8,5.49342]
[1720031525033,6.93363,3312.6,3311.9,0.549342]
[1720031525230,6.93363,3312.6,3311.9,0.60359]
[1720031525231,2.3055,3312.5,3311.9,0.60359]
[1720031525836,2.3055,3312.5,3311.9,3.623]
[1720031527455,5.32438,3312.5,3311.9,3.623]
[1720031527662,5.32438,3312.5,3312.0,0.6097]
[1720031528279,3.01901,3312.4,3312.1,0.054248]
[1720031528661,3.01901,3312.4,3311.8,0.896]
[1720031528857,3.01901,3312.4,3312.2,0.054248]
[1720031529062,3.01901,3312.4,3311.8,0.896]
[1720031529279,3.01901,3312.4,3312.3,0.054248]
[1720031529476,3.01901,3312.4,3311.8,0.896]
[1720031529789,3.01906,3312.3,3311.6,5.51907]
[1720031529964,3.01906,3312.3,3311.9,0.054248]
[1720031530162,3.01906,3312.3,3311.6,3.91567]
[1720031530477,3.01906,3312.3,3311.7,0.445815]
[1720031533296,3.01906,3312.3,3311.7,3.465395]
[1720031535198,3.01901,3312.4,3311.7,3.465325]
[1720031535371,3.01901,3312.4,3311.8,3.1597]
[1720031535574,3.01901,3312.4,3311.9,0.05400744]
[1720031536701,6.03805,3312.4,3311.9,0.05400744]
[1720031537103,3.01905,3312.3,3311.9,0.05400744]
[1720031537464,3.01905,3312.3,3311.7,3.01959]
[1720031537662,3.01905,3312.3,3312.0,0.05400744]
[1720031537863,3.01905,3312.3,3311.7,3.01959]
[1720031538095,3.01905,3312.3,3312.1,0.0537057]
[1720031538298,3.01905,3312.3,3311.6,6.35678]
[1720031538758,3.01905,3312.3,3311.7,0.0537057]
[1720031539624,3.01905,3312.3,3311.7,3.0732957]
[1720031539908,3.01905,3312.3,3311.7,4.01629627]
[1720031540111,3.01905,3312.3,3311.7,0.99670627]
[1720031540414,3.01916,3312.2,3311.7,0.99670627]
[1720031543778,6.03803,3312.4,3311.7,4.01628627]
[1720031544091,3.01901,3312.4,3311.7,4.01628627]
[1720031544293,6.03803,3312.4,3311.8,1.03729963]
[1720031544591,6.03805,3312.4,3311.8,1.03729963]
[1720031544796,6.03805,3312.4,3311.9,0.0537057]
[1720031544999,3.01901,3312.4,3311.9,0.0537057]
[1720031545606,6.03804,3312.4,3311.9,0.0537057]
[1720031546081,3.01905,3312.3,3311.9,0.0537057]
[1720031547186,3.01914,3312.2,3311.9,0.0537057]
[1720031547393,0.603815,3312.2,3311.9,0.0537057]
[1720031547597,1.29970284,3313.8,3311.9,0.0537057]
[1720031547598,6.03864,3312.0,3311.9,0.0537057]
[1720031547887,6.03864,3312.0,3311.2,2.3909]
[1720031547888,6.03913,3311.8,3311.2,2.3909]
[1720031548128,6.03912,3311.8,3311.2,2.3909]
[1720031548431,6.03912,3311.8,3311.3,0.05006008]
[1720031548928,3.01936,3312.0,3311.2,2.3909]
[1720031549115,3.0196,3311.7,3311.2,3.021599]
[1720031549305,3.0196,3311.7,3311.3,0.05006008]
[1720031549629,3.0196,3311.7,3311.2,3.021599]
[1720031549794,3.0196,3311.7,3311.4,0.05013347]
[1720031549997,3.0196,3311.7,3311.2,3.021599]
[1720031550194,3.0196,3311.7,3311.3,0.05013347]
[1720031550504,3.0196,3311.7,3311.2,2.3909]
[1720031550715,3.0196,3311.7,3311.4,0.05020686]
[1720031550916,3.0196,3311.7,3311.2,2.3909]
[1720031551126,3.0196,3311.7,3311.5,0.05020686]
[1720031551322,3.0196,3311.7,3311.2,2.3909]
[1720031551525,3.0196,3311.7,3311.6,0.05020686]
[1720031551733,3.0196,3311.7,3311.2,2.3909]
[1720031551927,3.0196,3311.7,3311.6,0.05020686]
[1720031552132,3.0196,3311.7,3311.2,2.3909]
[1720031552332,3.0196,3311.7,3311.6,0.05020686]
[1720031552824,3.0196,3311.7,3311.2,2.3909]
[1720031553036,3.01969,3311.6,3311.2,2.932012]
[1720031554724,3.01992,3311.4,3310.8,2.3212]
[1720031554940,0.896,3311.5,3310.8,2.3212]
[1720031555107,0.896,3311.5,3310.4,7.28]
[1720031555108,3.02038,3310.9,3310.4,2.3212]
[1720031555305,3.02038,3310.9,3310.4,2.945015]
[1720031555615,3.02038,3310.9,3310.4,3.841015]
[1720031555913,3.02014,3311.1,3310.4,3.841015]
[1720031556119,6.04037,3311.1,3310.4,3.841015]
[1720031556318,3.02027,3311.0,3310.4,3.841015]
[1720031556538,3.02027,3311.0,3310.5,0.39014239]
[1720031560413,3.02001,3311.3,3310.7,2.4137]
[1720031560770,3.02001,3311.3,3310.7,2.47410278]
[1720031561249,3.02001,3311.3,3310.7,2.4137]
[1720031561967,3.02001,3311.3,3310.7,5.49459282]
[1720031562177,3.01982,3311.5,3310.7,5.49459282]
[1720031562178,6.03967,3311.5,3310.8,0.94111328]
[1720031562357,6.01992,3311.4,3310.8,0.94111328]
[1720031562879,6.01992,3311.4,3310.9,0.04902709]
[1720031566547,3.01996,3311.3,3310.9,0.04902709]
[1720031567073,3.91596,3311.3,3310.9,0.04902709]
[1720031567562,6.93599,3311.3,3310.7,2.4137]
[1720031567867,3.02031,3311.0,3310.5,2.87284239]
[1720031568093,6.04063,3311.0,3310.8,0.04899854]
[1720031568222,6.04063,3311.0,3310.5,2.4827]
[1720031568429,6.04063,3311.0,3310.6,0.04901078]
[1720031568867,3.02033,3310.9,3310.6,0.04901078]
[1720031572437,3.02042,3310.8,3310.6,0.04901078]
[1720031572972,3.02042,3310.8,3310.3,2.4027]
[1720031573222,3.02042,3310.8,3310.7,0.04753399]
[1720031573564,3.02042,3310.8,3310.3,2.4027]
[1720031573803,3.02042,3310.8,3310.4,0.04753399]
[1720031576176,6.0409,3310.8,3310.4,0.04753399]
[1720031576566,3.02052,3310.7,3310.4,0.04753399]
[1720031577268,3.02069,3310.5,3310.4,0.04753399]
[1720031577677,6.04144,3310.5,3310.1,2.3479]
[1720031577903,6.04144,3310.5,3310.4,0.04753399]
[1720031578225,3.02069,3310.5,3310.4,0.04753399]
[1720031578530,3.02069,3310.5,3310.1,2.3479]
[1720031578827,3.02069,3310.5,3310.2,0.32439]
[1720031579031,3.02069,3310.5,3310.3,0.04753399]
[1720031579220,3.02069,3310.5,3310.2,0.32439]
[1720031579426,3.02069,3310.5,3310.3,0.04753399]
[1720031579594,3.02069,3310.5,3310.2,0.32439]
[1720031579799,3.02069,3310.5,3310.3,0.04753399]
[1720031580018,3.02069,3310.5,3310.2,0.32439]
[1720031580230,3.02069,3310.5,3310.3,0.04769716]
[1720031580427,3.02069,3310.5,3310.2,0.32439]
[1720031580735,3.02069,3310.5,3310.3,0.04769716]
[1720031581241,3.224,3310.9,3310.5,2.2874]
[1720031581242,3.02033,3310.9,3310.5,2.2874]
[1720031581544,3.0,3310.8,3310.6,0.04770124]
[1720031583102,6.02046,3310.8,3310.6,0.04770124]
[1720031583439,6.02046,3310.8,3310.2,2.4501]
[1720031583614,6.02046,3310.8,3310.3,0.047689]
[1720031583821,3.0206,3310.6,3310.2,2.4501]
[1720031584004,3.0206,3310.6,3310.0,3.02114]
[1720031584005,2.3648,3310.5,3310.3,0.04781547]
[1720031584205,6.04147,3310.5,3309.8,10.30126]
[1720031584399,6.04147,3310.5,3309.9,1.32763147]
[1720031585216,3.02078,3310.4,3309.9,1.32763147]
[1720031586135,3.02056,3310.7,3310.0,2.4776]
[1720031586354,3.02064,3310.6,3310.0,2.4776]
[1720031586519,3.0207,3310.5,3310.1,0.82002798]
[1720031586856,3.02056,3310.7,3310.1,0.82002798]
[1720031587148,3.02065,3310.6,3310.1,0.82002798]
[1720031588255,3.0,3310.8,3310.2,2.2592]
[1720031588420,3.02029,3311.0,3310.3,4.2247928]
[1720031588618,3.02029,3311.0,3310.4,0.04785219]
[1720031588862,3.0,3310.9,3310.4,0.04785219]
[1720031589731,6.02036,3310.9,3310.4,0.04785219]
[1720031591987,3.02043,3310.8,3310.4,0.04785219]
[1720031592327,3.02043,3310.8,3310.2,2.2592]
[1720031592528,3.02043,3310.8,3310.5,0.04778691]
[1720031592729,3.02051,3310.7,3310.2,2.2592]
[1720031592930,3.02051,3310.7,3310.6,0.04778691]
[1720031593260,3.02051,3310.7,3310.6,0.04779507]
[1720031593461,3.02051,3310.7,3310.2,2.2592]